Workbook

Sheet Data
A1: Date | B1: Year | C1: Month | D1: Country | E1: Category | F1: Product | G1: Count | H1: Price | I1: Total | K1: Year | L1: Month | M1: Country | N1: Category | O1: Product
A2: 2012-01-01 | B2: 2012 | C2: 1 | D2: Macedonia | E2: Tablet PCs | F2: GOOWEEL Q88 PRO A23 DUAL CORE TABLET PC | G2: 5 | H2: 198 | I2: =Table1[[#This Row],[Count]]*Table1[[#This Row],[Price]] -> 990 | K2: =IF(Filter!D3="",">0",Filter!D3) -> 2014 | L2: =IF(Filter!D4="",">0",Filter!D4) -> >0 | M2: =IF(Filter!D5="","*",Filter!D5) -> USA | N2: =IF(Filter!D6="","*",Filter!D6) -> * | O2: =IF(Filter!D7="","","*"&Filter!D7&"*") -> *VIA*
A3: 2012-01-01 | B3: 2012 | C3: 1 | D3: USA | E3: Laptops | F3: Y10D 10 INCH VIA 8880 | G3: 1 | H3: 246 | I3: =Table1[[#This Row],[Count]]*Table1[[#This Row],[Price]] -> 246
A4: 2012-01-01 | B4: 2012 | C4: 1 | D4: USA | E4: Workstations | F4: I7 MINI PC WITH HDMI QOTOM-T620 | G4: 1 | H4: 342 | I4: =Table1[[#This Row],[Count]]*Table1[[#This Row],[Price]] -> 342 | K4: Year | L4: Month | M4: Country | N4: Category
A5: 2012-01-01 | B5: 2012 | C5: 1 | D5: USA | E5: Workstations | F5: HIGH PERFORMANCE 4U LCD WORKSTATION C | G5: 5 | H5: 366 | I5: =Table1[[#This Row],[Count]]*Table1[[#This Row],[Price]] -> 1830 | K5: 2012 | L5: 1 | M5: Albania | N5: Camera & Photo
A6: 2012-01-02 | B6: 2012 | C6: 1 | D6: USA | E6: Workstations | F6: HZONE NCOMPUTING L230 | G6: 4 | H6: 354 | I6: =Table1[[#This Row],[Count]]*Table1[[#This Row],[Price]] -> 1416 | K6: 2013 | L6: 2 | M6: Andorra | N6: Laptops
A7: 2012-01-02 | B7: 2012 | C7: 1 | D7: Czech Republic | E7: Tablet PCs | F7: ONDA V975M TABLET PC | G7: 4 | H7: 150 | I7: =Table1[[#This Row],[Count]]*Table1[[#This Row],[Price]] -> 600 | K7: 2014 | L7: 3 | M7: Australia | N7: Tablet PCs
A8: 2012-01-02 | B8: 2012 | C8: 1 | D8: Slovenia | E8: Laptops | F8: VIA 8850 ANDROID 4.0 | G8: 2 | H8: 282 | I8: =Table1[[#This Row],[Count]]*Table1[[#This Row],[Price]] -> 564 | L8: 4 | M8: Austria | N8: Workstations
A9: 2012-01-02 | B9: 2012 | C9: 1 | D9: Norway | E9: Laptops | F9: THINKPAD T440S | G9: 5 | H9: 258 | I9: =Table1[[#This Row],[Count]]*Table1[[#This Row],[Price]] -> 1290 | L9: 5 | M9: Belarus
A10: 2012-01-03 | B10: 2012 | C10: 1 | D10: Portugal | E10: Workstations | F10: SUN BLADE 1500 WORKSTATION BASE SUN B1500 | G10: 5 | H10: 378 | I10: =Table1[[#This Row],[Count]]*Table1[[#This Row],[Price]] -> 1890 | L10: 6 | M10: Belgium
A11: 2012-01-03 | B11: 2012 | C11: 1 | D11: Ukraine | E11: Laptops | F11: Y10D 10 INCH VIA 8880 | G11: 5 | H11: 246 | I11: =Table1[[#This Row],[Count]]*Table1[[#This Row],[Price]] -> 1230 | L11: 7 | M11: Bosnia And Herzegovina
A12: 2012-01-03 | B12: 2012 | C12: 1 | D12: Netherlands | E12: Laptops | F12: Y10D 10 INCH VIA 8880 | G12: 3 | H12: 246 | I12: =Table1[[#This Row],[Count]]*Table1[[#This Row],[Price]] -> 738 | L12: 8 | M12: Bulgaria
A13: 2012-01-03 | B13: 2012 | C13: 1 | D13: Norway | E13: Workstations | F13: HIGH PERFORMANCE 4U LCD WORKSTATION C | G13: 1 | H13: 366 | I13: =Table1[[#This Row],[Count]]*Table1[[#This Row],[Price]] -> 366 | L13: 9 | M13: Croatia
A14: 2012-01-04 | B14: 2012 | C14: 1 | D14: USA | E14: Tablet PCs | F14: TABLET 10-INCH QUAD-CORE A9 | G14: 4 | H14: 162 | I14: =Table1[[#This Row],[Count]]*Table1[[#This Row],[Price]] -> 648 | L14: 10 | M14: Czech Republic
A15: 2012-01-04 | B15: 2012 | C15: 1 | D15: USA | E15: Laptops | F15: 14.1" AIR LAPTOP INTEL D2500 | G15: 5 | H15: 270 | I15: =Table1[[#This Row],[Count]]*Table1[[#This Row],[Price]] -> 1350 | L15: 11 | M15: Denmark
A16: 2012-01-04 | B16: 2012 | C16: 1 | D16: Australia | E16: Laptops | F16: 14INCH ULTRABOOK | G16: 3 | H16: 234 | I16: =Table1[[#This Row],[Count]]*Table1[[#This Row],[Price]] -> 702 | L16: 12 | M16: Estonia
A17: 2012-01-04 | B17: 2012 | C17: 1 | D17: Slovenia | E17: Workstations | F17: HZONE NCOMPUTING L230 | G17: 3 | H17: 354 | I17: =Table1[[#This Row],[Count]]*Table1[[#This Row],[Price]] -> 1062 | M17: Finland
A18: 2012-01-05 | B18: 2012 | C18: 1 | D18: USA | E18: Camera & Photo | F18: FUJIFILM FINEPIX SL1000 | G18: 2 | H18: 330 | I18: =Table1[[#This Row],[Count]]*Table1[[#This Row],[Price]] -> 660 | M18: France
A19: 2012-01-05 | B19: 2012 | C19: 1 | D19: Finland | E19: Tablet PCs | F19: ONDA V975M TABLET PC | G19: 1 | H19: 150 | I19: =Table1[[#This Row],[Count]]*Table1[[#This Row],[Price]] -> 150 | M19: Georgia
A20: 2012-01-05 | B20: 2012 | C20: 1 | D20: Latvia | E20: Laptops | F20: 14INCH ULTRABOOK | G20: 4 | H20: 234 | I20: =Table1[[#This Row],[Count]]*Table1[[#This Row],[Price]] -> 936 | M20: Germany
A21: 2012-01-05 | B21: 2012 | C21: 1 | D21: Portugal | E21: Camera & Photo | F21: FUJIFILM FINEPIX SL1000 | G21: 1 | H21: 330 | I21: =Table1[[#This Row],[Count]]*Table1[[#This Row],[Price]] -> 330 | M21: Greece
A22: 2012-01-06 | B22: 2012 | C22: 1 | D22: Albania | E22: Workstations | F22: I7 MINI PC WITH HDMI QOTOM-T620 | G22: 3 | H22: 342 | I22: =Table1[[#This Row],[Count]]*Table1[[#This Row],[Price]] -> 1026 | M22: Hungary
A23: 2012-01-06 | B23: 2012 | C23: 1 | D23: USA | E23: Camera & Photo | F23: D3200 DIGITAL SLR | G23: 3 | H23: 306 | I23: =Table1[[#This Row],[Count]]*Table1[[#This Row],[Price]] -> 918 | M23: Ireland
A24: 2012-01-06 | B24: 2012 | C24: 1 | D24: Serbien und Montenegro | E24: Tablet PCs | F24: 10 INCH TABLET HIGH QUALITY TABLET 1GB | G24: 5 | H24: 174 | I24: =Table1[[#This Row],[Count]]*Table1[[#This Row],[Price]] -> 870 | M24: Italy
A25: 2012-01-06 | B25: 2012 | C25: 1 | D25: Latvia | E25: Tablet PCs | F25: 10 INCH TABLET HIGH QUALITY TABLET 1GB | G25: 3 | H25: 174 | I25: =Table1[[#This Row],[Count]]*Table1[[#This Row],[Price]] -> 522 | M25: Latvia
A26: 2012-01-07 | B26: 2012 | C26: 1 | D26: United Kingdom | E26: Laptops | F26: THINKPAD T440S | G26: 5 | H26: 258 | I26: =Table1[[#This Row],[Count]]*Table1[[#This Row],[Price]] -> 1290 | M26: Liechtenstein
A27: 2012-01-07 | B27: 2012 | C27: 1 | D27: USA | E27: Laptops | F27: VIA 8850 ANDROID 4.0 | G27: 1 | H27: 282 | I27: =Table1[[#This Row],[Count]]*Table1[[#This Row],[Price]] -> 282 | M27: Lithuania
A28: 2012-01-07 | B28: 2012 | C28: 1 | D28: USA | E28: Tablet PCs | F28: ONDA V975M TABLET PC | G28: 1 | H28: 150 | I28: =Table1[[#This Row],[Count]]*Table1[[#This Row],[Price]] -> 150 | M28: Luxembourg
A29: 2012-01-07 | B29: 2012 | C29: 1 | D29: Monaco | E29: Laptops | F29: THINKPAD E445 | G29: 3 | H29: 222 | I29: =Table1[[#This Row],[Count]]*Table1[[#This Row],[Price]] -> 666 | M29: Macedonia
A30: 2012-01-08 | B30: 2012 | C30: 1 | D30: USA | E30: Laptops | F30: VIA 8850 ANDROID 4.0 | G30: 2 | H30: 282 | I30: =Table1[[#This Row],[Count]]*Table1[[#This Row],[Price]] -> 564 | M30: Malta
A31: 2012-01-08 | B31: 2012 | C31: 1 | D31: Albania | E31: Tablet PCs | F31: PIPO M6 PRO 9.7 INCH 3G TABLET PC | G31: 5 | H31: 186 | I31: =Table1[[#This Row],[Count]]*Table1[[#This Row],[Price]] -> 930 | M31: Moldova
A32: 2012-01-08 | B32: 2012 | C32: 1 | D32: USA | E32: Tablet PCs | F32: TABLET 10-INCH QUAD-CORE A9 | G32: 2 | H32: 162 | I32: =Table1[[#This Row],[Count]]*Table1[[#This Row],[Price]] -> 324 | M32: Monaco
A33: 2012-01-08 | B33: 2012 | C33: 1 | D33: Netherlands | E33: Tablet PCs | F33: 7 INCH DUAL CORE ANDROID TABLET PC Q88 | G33: 4 | H33: 210 | I33: =Table1[[#This Row],[Count]]*Table1[[#This Row],[Price]] -> 840 | M33: Montenegro
A34: 2012-01-09 | B34: 2012 | C34: 1 | D34: Romania | E34: Laptops | F34: THINKPAD T440S | G34: 2 | H34: 258 | I34: =Table1[[#This Row],[Count]]*Table1[[#This Row],[Price]] -> 516 | M34: Netherlands
A35: 2012-01-09 | B35: 2012 | C35: 1 | D35: Netherlands | E35: Workstations | F35: I7 MINI PC WITH HDMI QOTOM-T620 | G35: 4 | H35: 342 | I35: =Table1[[#This Row],[Count]]*Table1[[#This Row],[Price]] -> 1368 | M35: Norway
A36: 2012-01-09 | B36: 2012 | C36: 1 | D36: Lithuania | E36: Laptops | F36: 14INCH ULTRABOOK | G36: 3 | H36: 234 | I36: =Table1[[#This Row],[Count]]*Table1[[#This Row],[Price]] -> 702 | M36: Poland
A37: 2012-01-09 | B37: 2012 | C37: 1 | D37: Hungary | E37: Workstations | F37: HZONE NCOMPUTING L230 | G37: 4 | H37: 354 | I37: =Table1[[#This Row],[Count]]*Table1[[#This Row],[Price]] -> 1416 | M37: Portugal
A38: 2012-01-10 | B38: 2012 | C38: 1 | D38: USA | E38: Laptops | F38: VIA 8850 ANDROID 4.0 | G38: 5 | H38: 282 | I38: =Table1[[#This Row],[Count]]*Table1[[#This Row],[Price]] -> 1410 | M38: Romania
A39: 2012-01-10 | B39: 2012 | C39: 1 | D39: Malta | E39: Workstations | F39: SUN BLADE 1500 WORKSTATION BASE SUN B1500 | G39: 3 | H39: 378 | I39: =Table1[[#This Row],[Count]]*Table1[[#This Row],[Price]] -> 1134 | M39: Serbien und Montenegro
A40: 2012-01-10 | B40: 2012 | C40: 1 | D40: USA | E40: Laptops | F40: 14INCH ULTRABOOK | G40: 3 | H40: 234 | I40: =Table1[[#This Row],[Count]]*Table1[[#This Row],[Price]] -> 702 | M40: Slovakia
A41: 2012-01-10 | B41: 2012 | C41: 1 | D41: Georgia | E41: Tablet PCs | F41: ONDA V975M TABLET PC | G41: 3 | H41: 150 | I41: =Table1[[#This Row],[Count]]*Table1[[#This Row],[Price]] -> 450 | M41: Slovenia
A42: 2012-01-11 | B42: 2012 | C42: 1 | D42: USA | E42: Camera & Photo | F42: SONY CYBERSHOT H200 | G42: 3 | H42: 318 | I42: =Table1[[#This Row],[Count]]*Table1[[#This Row],[Price]] -> 954 | M42: Spain
A43: 2012-01-11 | B43: 2012 | C43: 1 | D43: USA | E43: Camera & Photo | F43: SONY CYBERSHOT H200 | G43: 2 | H43: 318 | I43: =Table1[[#This Row],[Count]]*Table1[[#This Row],[Price]] -> 636 | M43: Sweden
A44: 2012-01-11 | B44: 2012 | C44: 1 | D44: France | E44: Laptops | F44: 14.1" AIR LAPTOP INTEL D2500 | G44: 3 | H44: 270 | I44: =Table1[[#This Row],[Count]]*Table1[[#This Row],[Price]] -> 810 | M44: Switzerland
A45: 2012-01-11 | B45: 2012 | C45: 1 | D45: Portugal | E45: Workstations | F45: HZONE NCOMPUTING L230 | G45: 5 | H45: 354 | I45: =Table1[[#This Row],[Count]]*Table1[[#This Row],[Price]] -> 1770 | M45: Ukraine
A46: 2012-01-12 | B46: 2012 | C46: 1 | D46: Switzerland | E46: Camera & Photo | F46: SONY CYBERSHOT H200 | G46: 2 | H46: 318 | I46: =Table1[[#This Row],[Count]]*Table1[[#This Row],[Price]] -> 636 | M46: United Kingdom
A47: 2012-01-12 | B47: 2012 | C47: 1 | D47: USA | E47: Camera & Photo | F47: D3000 DIGITAL SLR | G47: 2 | H47: 294 | I47: =Table1[[#This Row],[Count]]*Table1[[#This Row],[Price]] -> 588 | M47: USA
A48: 2012-01-12 | B48: 2012 | C48: 1 | D48: USA | E48: Laptops | F48: THINKPAD T440S | G48: 4 | H48: 258 | I48: =Table1[[#This Row],[Count]]*Table1[[#This Row],[Price]] -> 1032
A49: 2012-01-12 | B49: 2012 | C49: 1 | D49: USA | E49: Workstations | F49: CLOUD COMPUTER THIN STATION FL300 | G49: 5 | H49: 390 | I49: =Table1[[#This Row],[Count]]*Table1[[#This Row],[Price]] -> 1950
A50: 2012-01-13 | B50: 2012 | C50: 1 | D50: Poland | E50: Tablet PCs | F50: 10 INCH TABLET HIGH QUALITY TABLET 1GB | G50: 5 | H50: 174 | I50: =Table1[[#This Row],[Count]]*Table1[[#This Row],[Price]] -> 870
A51: 2012-01-13 | B51: 2012 | C51: 1 | D51: USA | E51: Camera & Photo | F51: D3000 DIGITAL SLR | G51: 4 | H51: 294 | I51: =Table1[[#This Row],[Count]]*Table1[[#This Row],[Price]] -> 1176
A52: 2012-01-13 | B52: 2012 | C52: 1 | D52: USA | E52: Workstations | F52: HIGH PERFORMANCE 4U LCD WORKSTATION C | G52: 4 | H52: 366 | I52: =Table1[[#This Row],[Count]]*Table1[[#This Row],[Price]] -> 1464
A53: 2012-01-13 | B53: 2012 | C53: 1 | D53: USA | E53: Tablet PCs | F53: 7 INCH DUAL CORE ANDROID TABLET PC Q88 | G53: 5 | H53: 210 | I53: =Table1[[#This Row],[Count]]*Table1[[#This Row],[Price]] -> 1050
A54: 2012-01-14 | B54: 2012 | C54: 1 | D54: USA | E54: Camera & Photo | F54: D3200 DIGITAL SLR | G54: 2 | H54: 306 | I54: =Table1[[#This Row],[Count]]*Table1[[#This Row],[Price]] -> 612
A55: 2012-01-14 | B55: 2012 | C55: 1 | D55: United Kingdom | E55: Laptops | F55: 14INCH ULTRABOOK | G55: 2 | H55: 234 | I55: =Table1[[#This Row],[Count]]*Table1[[#This Row],[Price]] -> 468
A56: 2012-01-14 | B56: 2012 | C56: 1 | D56: USA | E56: Laptops | F56: THINKPAD E445 | G56: 1 | H56: 222 | I56: =Table1[[#This Row],[Count]]*Table1[[#This Row],[Price]] -> 222
A57: 2012-01-14 | B57: 2012 | C57: 1 | D57: Portugal | E57: Camera & Photo | F57: SONY CYBERSHOT H200 | G57: 1 | H57: 318 | I57: =Table1[[#This Row],[Count]]*Table1[[#This Row],[Price]] -> 318
A58: 2012-01-15 | B58: 2012 | C58: 1 | D58: Australia | E58: Camera & Photo | F58: SONY CYBERSHOT H200 | G58: 1 | H58: 318 | I58: =Table1[[#This Row],[Count]]*Table1[[#This Row],[Price]] -> 318
A59: 2012-01-15 | B59: 2012 | C59: 1 | D59: Ukraine | E59: Laptops | F59: 14.1" AIR LAPTOP INTEL D2500 | G59: 4 | H59: 270 | I59: =Table1[[#This Row],[Count]]*Table1[[#This Row],[Price]] -> 1080
A60: 2012-01-15 | B60: 2012 | C60: 1 | D60: Greece | E60: Camera & Photo | F60: D3200 DIGITAL SLR | G60: 3 | H60: 306 | I60: =Table1[[#This Row],[Count]]*Table1[[#This Row],[Price]] -> 918
A61: 2012-01-15 | B61: 2012 | C61: 1 | D61: Lithuania | E61: Camera & Photo | F61: FUJIFILM FINEPIX SL1000 | G61: 4 | H61: 330 | I61: =Table1[[#This Row],[Count]]*Table1[[#This Row],[Price]] -> 1320
A62: 2012-01-16 | B62: 2012 | C62: 1 | D62: USA | E62: Camera & Photo | F62: D3200 DIGITAL SLR | G62: 1 | H62: 306 | I62: =Table1[[#This Row],[Count]]*Table1[[#This Row],[Price]] -> 306
A63: 2012-01-16 | B63: 2012 | C63: 1 | D63: USA | E63: Camera & Photo | F63: D3000 DIGITAL SLR | G63: 5 | H63: 294 | I63: =Table1[[#This Row],[Count]]*Table1[[#This Row],[Price]] -> 1470
A64: 2012-01-16 | B64: 2012 | C64: 1 | D64: USA | E64: Tablet PCs | F64: 7 INCH DUAL CORE ANDROID TABLET PC Q88 | G64: 2 | H64: 210 | I64: =Table1[[#This Row],[Count]]*Table1[[#This Row],[Price]] -> 420
A65: 2012-01-16 | B65: 2012 | C65: 1 | D65: USA | E65: Laptops | F65: 14INCH ULTRABOOK | G65: 2 | H65: 234 | I65: =Table1[[#This Row],[Count]]*Table1[[#This Row],[Price]] -> 468
A66: 2012-01-17 | B66: 2012 | C66: 1 | D66: Greece | E66: Camera & Photo | F66: D3200 DIGITAL SLR | G66: 5 | H66: 306 | I66: =Table1[[#This Row],[Count]]*Table1[[#This Row],[Price]] -> 1530
A67: 2012-01-17 | B67: 2012 | C67: 1 | D67: USA | E67: Camera & Photo | F67: SONY CYBERSHOT H200 | G67: 5 | H67: 318 | I67: =Table1[[#This Row],[Count]]*Table1[[#This Row],[Price]] -> 1590
A68: 2012-01-17 | B68: 2012 | C68: 1 | D68: Australia | E68: Workstations | F68: CLOUD COMPUTER THIN STATION FL300 | G68: 5 | H68: 390 | I68: =Table1[[#This Row],[Count]]*Table1[[#This Row],[Price]] -> 1950
A69: 2012-01-17 | B69: 2012 | C69: 1 | D69: USA | E69: Laptops | F69: 14INCH ULTRABOOK | G69: 2 | H69: 234 | I69: =Table1[[#This Row],[Count]]*Table1[[#This Row],[Price]] -> 468
A70: 2012-01-18 | B70: 2012 | C70: 1 | D70: Moldova | E70: Workstations | F70: CLOUD COMPUTER THIN STATION FL300 | G70: 4 | H70: 390 | I70: =Table1[[#This Row],[Count]]*Table1[[#This Row],[Price]] -> 1560
A71: 2012-01-18 | B71: 2012 | C71: 1 | D71: Sweden | E71: Tablet PCs | F71: TABLET 10-INCH QUAD-CORE A9 | G71: 5 | H71: 162 | I71: =Table1[[#This Row],[Count]]*Table1[[#This Row],[Price]] -> 810
A72: 2012-01-18 | B72: 2012 | C72: 1 | D72: USA | E72: Tablet PCs | F72: 7 INCH DUAL CORE ANDROID TABLET PC Q88 | G72: 3 | H72: 210 | I72: =Table1[[#This Row],[Count]]*Table1[[#This Row],[Price]] -> 630
A73: 2012-01-18 | B73: 2012 | C73: 1 | D73: USA | E73: Laptops | F73: THINKPAD T440S | G73: 1 | H73: 258 | I73: =Table1[[#This Row],[Count]]*Table1[[#This Row],[Price]] -> 258
A74: 2012-01-19 | B74: 2012 | C74: 1 | D74: USA | E74: Workstations | F74: I7 MINI PC WITH HDMI QOTOM-T620 | G74: 4 | H74: 342 | I74: =Table1[[#This Row],[Count]]*Table1[[#This Row],[Price]] -> 1368
A75: 2012-01-19 | B75: 2012 | C75: 1 | D75: Australia | E75: Workstations | F75: HZONE NCOMPUTING L230 | G75: 3 | H75: 354 | I75: =Table1[[#This Row],[Count]]*Table1[[#This Row],[Price]] -> 1062
A76: 2012-01-19 | B76: 2012 | C76: 1 | D76: Denmark | E76: Laptops | F76: 14.1" AIR LAPTOP INTEL D2500 | G76: 2 | H76: 270 | I76: =Table1[[#This Row],[Count]]*Table1[[#This Row],[Price]] -> 540
A77: 2012-01-19 | B77: 2012 | C77: 1 | D77: Ukraine | E77: Tablet PCs | F77: TABLET 10-INCH QUAD-CORE A9 | G77: 3 | H77: 162 | I77: =Table1[[#This Row],[Count]]*Table1[[#This Row],[Price]] -> 486
A78: 2012-01-20 | B78: 2012 | C78: 1 | D78: USA | E78: Workstations | F78: SUN BLADE 1500 WORKSTATION BASE SUN B1500 | G78: 3 | H78: 378 | I78: =Table1[[#This Row],[Count]]*Table1[[#This Row],[Price]] -> 1134
A79: 2012-01-20 | B79: 2012 | C79: 1 | D79: Bosnia And Herzegovina | E79: Laptops | F79: Y10D 10 INCH VIA 8880 | G79: 1 | H79: 246 | I79: =Table1[[#This Row],[Count]]*Table1[[#This Row],[Price]] -> 246
A80: 2012-01-20 | B80: 2012 | C80: 1 | D80: Austria | E80: Laptops | F80: 14INCH ULTRABOOK | G80: 5 | H80: 234 | I80: =Table1[[#This Row],[Count]]*Table1[[#This Row],[Price]] -> 1170
A81: 2012-01-20 | B81: 2012 | C81: 1 | D81: USA | E81: Laptops | F81: Y10D 10 INCH VIA 8880 | G81: 4 | H81: 246 | I81: =Table1[[#This Row],[Count]]*Table1[[#This Row],[Price]] -> 984
A82: 2012-01-21 | B82: 2012 | C82: 1 | D82: USA | E82: Camera & Photo | F82: SONY CYBERSHOT H200 | G82: 1 | H82: 318 | I82: =Table1[[#This Row],[Count]]*Table1[[#This Row],[Price]] -> 318
A83: 2012-01-21 | B83: 2012 | C83: 1 | D83: USA | E83: Workstations | F83: HZONE NCOMPUTING L230 | G83: 2 | H83: 354 | I83: =Table1[[#This Row],[Count]]*Table1[[#This Row],[Price]] -> 708
A84: 2012-01-21 | B84: 2012 | C84: 1 | D84: USA | E84: Camera & Photo | F84: SONY CYBERSHOT H200 | G84: 4 | H84: 318 | I84: =Table1[[#This Row],[Count]]*Table1[[#This Row],[Price]] -> 1272
A85: 2012-01-21 | B85: 2012 | C85: 1 | D85: France | E85: Tablet PCs | F85: TABLET 10-INCH QUAD-CORE A9 | G85: 5 | H85: 162 | I85: =Table1[[#This Row],[Count]]*Table1[[#This Row],[Price]] -> 810
A86: 2012-01-22 | B86: 2012 | C86: 1 | D86: Portugal | E86: Tablet PCs | F86: GOOWEEL Q88 PRO A23 DUAL CORE TABLET PC | G86: 1 | H86: 198 | I86: =Table1[[#This Row],[Count]]*Table1[[#This Row],[Price]] -> 198
A87: 2012-01-22 | B87: 2012 | C87: 1 | D87: USA | E87: Workstations | F87: HZONE NCOMPUTING L230 | G87: 1 | H87: 354 | I87: =Table1[[#This Row],[Count]]*Table1[[#This Row],[Price]] -> 354
A88: 2012-01-22 | B88: 2012 | C88: 1 | D88: USA | E88: Workstations | F88: I7 MINI PC WITH HDMI QOTOM-T620 | G88: 3 | H88: 342 | I88: =Table1[[#This Row],[Count]]*Table1[[#This Row],[Price]] -> 1026
A89: 2012-01-22 | B89: 2012 | C89: 1 | D89: USA | E89: Laptops | F89: THINKPAD E445 | G89: 2 | H89: 222 | I89: =Table1[[#This Row],[Count]]*Table1[[#This Row],[Price]] -> 444
A90: 2012-01-23 | B90: 2012 | C90: 1 | D90: USA | E90: Camera & Photo | F90: D3000 DIGITAL SLR | G90: 3 | H90: 294 | I90: =Table1[[#This Row],[Count]]*Table1[[#This Row],[Price]] -> 882
A91: 2012-01-23 | B91: 2012 | C91: 1 | D91: USA | E91: Tablet PCs | F91: GOOWEEL Q88 PRO A23 DUAL CORE TABLET PC | G91: 2 | H91: 198 | I91: =Table1[[#This Row],[Count]]*Table1[[#This Row],[Price]] -> 396
A92: 2012-01-23 | B92: 2012 | C92: 1 | D92: Denmark | E92: Tablet PCs | F92: PIPO M6 PRO 9.7 INCH 3G TABLET PC | G92: 3 | H92: 186 | I92: =Table1[[#This Row],[Count]]*Table1[[#This Row],[Price]] -> 558
A93: 2012-01-23 | B93: 2012 | C93: 1 | D93: USA | E93: Camera & Photo | F93: SONY CYBERSHOT H200 | G93: 3 | H93: 318 | I93: =Table1[[#This Row],[Count]]*Table1[[#This Row],[Price]] -> 954
A94: 2012-01-24 | B94: 2012 | C94: 1 | D94: Ireland | E94: Tablet PCs | F94: GOOWEEL Q88 PRO A23 DUAL CORE TABLET PC | G94: 1 | H94: 198 | I94: =Table1[[#This Row],[Count]]*Table1[[#This Row],[Price]] -> 198
A95: 2012-01-24 | B95: 2012 | C95: 1 | D95: Australia | E95: Workstations | F95: SUN BLADE 1500 WORKSTATION BASE SUN B1500 | G95: 2 | H95: 378 | I95: =Table1[[#This Row],[Count]]*Table1[[#This Row],[Price]] -> 756
A96: 2012-01-24 | B96: 2012 | C96: 1 | D96: Netherlands | E96: Laptops | F96: 14INCH ULTRABOOK | G96: 3 | H96: 234 | I96: =Table1[[#This Row],[Count]]*Table1[[#This Row],[Price]] -> 702
A97: 2012-01-24 | B97: 2012 | C97: 1 | D97: USA | E97: Workstations | F97: HZONE NCOMPUTING L230 | G97: 1 | H97: 354 | I97: =Table1[[#This Row],[Count]]*Table1[[#This Row],[Price]] -> 354
A98: 2012-01-25 | B98: 2012 | C98: 1 | D98: USA | E98: Camera & Photo | F98: D3200 DIGITAL SLR | G98: 5 | H98: 306 | I98: =Table1[[#This Row],[Count]]*Table1[[#This Row],[Price]] -> 1530
A99: 2012-01-25 | B99: 2012 | C99: 1 | D99: Andorra | E99: Laptops | F99: 14INCH ULTRABOOK | G99: 1 | H99: 234 | I99: =Table1[[#This Row],[Count]]*Table1[[#This Row],[Price]] -> 234
A100: 2012-01-25 | B100: 2012 | C100: 1 | D100: USA | E100: Laptops | F100: 14.1" AIR LAPTOP INTEL D2500 | G100: 3 | H100: 270 | I100: =Table1[[#This Row],[Count]]*Table1[[#This Row],[Price]] -> 810
A101: 2012-01-25 | B101: 2012 | C101: 1 | D101: Bulgaria | E101: Workstations | F101: SUN BLADE 1500 WORKSTATION BASE SUN B1500 | G101: 1 | H101: 378 | I101: =Table1[[#This Row],[Count]]*Table1[[#This Row],[Price]] -> 378
A102: 2012-01-26 | B102: 2012 | C102: 1 | D102: USA | E102: Camera & Photo | F102: FUJIFILM FINEPIX SL1000 | G102: 3 | H102: 330 | I102: =Table1[[#This Row],[Count]]*Table1[[#This Row],[Price]] -> 990
A103: 2012-01-26 | B103: 2012 | C103: 1 | D103: Norway | E103: Laptops | F103: VIA 8850 ANDROID 4.0 | G103: 4 | H103: 282 | I103: =Table1[[#This Row],[Count]]*Table1[[#This Row],[Price]] -> 1128
A104: 2012-01-26 | B104: 2012 | C104: 1 | D104: Portugal | E104: Camera & Photo | F104: SONY CYBERSHOT H200 | G104: 5 | H104: 318 | I104: =Table1[[#This Row],[Count]]*Table1[[#This Row],[Price]] -> 1590
A105: 2012-01-26 | B105: 2012 | C105: 1 | D105: USA | E105: Camera & Photo | F105: FUJIFILM FINEPIX SL1000 | G105: 5 | H105: 330 | I105: =Table1[[#This Row],[Count]]*Table1[[#This Row],[Price]] -> 1650
A106: 2012-01-27 | B106: 2012 | C106: 1 | D106: USA | E106: Tablet PCs | F106: 10 INCH TABLET HIGH QUALITY TABLET 1GB | G106: 4 | H106: 174 | I106: =Table1[[#This Row],[Count]]*Table1[[#This Row],[Price]] -> 696
A107: 2012-01-27 | B107: 2012 | C107: 1 | D107: USA | E107: Workstations | F107: HIGH PERFORMANCE 4U LCD WORKSTATION C | G107: 1 | H107: 366 | I107: =Table1[[#This Row],[Count]]*Table1[[#This Row],[Price]] -> 366
A108: 2012-01-27 | B108: 2012 | C108: 1 | D108: USA | E108: Laptops | F108: VIA 8850 ANDROID 4.0 | G108: 4 | H108: 282 | I108: =Table1[[#This Row],[Count]]*Table1[[#This Row],[Price]] -> 1128
A109: 2012-01-27 | B109: 2012 | C109: 1 | D109: Denmark | E109: Camera & Photo | F109: FUJIFILM FINEPIX SL1000 | G109: 3 | H109: 330 | I109: =Table1[[#This Row],[Count]]*Table1[[#This Row],[Price]] -> 990
A110: 2012-01-28 | B110: 2012 | C110: 1 | D110: USA | E110: Workstations | F110: CLOUD COMPUTER THIN STATION FL300 | G110: 4 | H110: 390 | I110: =Table1[[#This Row],[Count]]*Table1[[#This Row],[Price]] -> 1560
A111: 2012-01-28 | B111: 2012 | C111: 1 | D111: Germany | E111: Laptops | F111: Y10D 10 INCH VIA 8880 | G111: 5 | H111: 246 | I111: =Table1[[#This Row],[Count]]*Table1[[#This Row],[Price]] -> 1230
A112: 2012-01-28 | B112: 2012 | C112: 1 | D112: Australia | E112: Workstations | F112: HIGH PERFORMANCE 4U LCD WORKSTATION C | G112: 1 | H112: 366 | I112: =Table1[[#This Row],[Count]]*Table1[[#This Row],[Price]] -> 366
A113: 2012-01-28 | B113: 2012 | C113: 1 | D113: USA | E113: Tablet PCs | F113: 10 INCH TABLET HIGH QUALITY TABLET 1GB | G113: 3 | H113: 174 | I113: =Table1[[#This Row],[Count]]*Table1[[#This Row],[Price]] -> 522
A114: 2012-01-29 | B114: 2012 | C114: 1 | D114: Slovenia | E114: Tablet PCs | F114: 7 INCH DUAL CORE ANDROID TABLET PC Q88 | G114: 2 | H114: 210 | I114: =Table1[[#This Row],[Count]]*Table1[[#This Row],[Price]] -> 420
A115: 2012-01-29 | B115: 2012 | C115: 1 | D115: Albania | E115: Laptops | F115: VIA 8850 ANDROID 4.0 | G115: 1 | H115: 282 | I115: =Table1[[#This Row],[Count]]*Table1[[#This Row],[Price]] -> 282
A116: 2012-01-29 | B116: 2012 | C116: 1 | D116: Australia | E116: Workstations | F116: CLOUD COMPUTER THIN STATION FL300 | G116: 4 | H116: 390 | I116: =Table1[[#This Row],[Count]]*Table1[[#This Row],[Price]] -> 1560
A117: 2012-01-29 | B117: 2012 | C117: 1 | D117: Malta | E117: Laptops | F117: 14.1" AIR LAPTOP INTEL D2500 | G117: 2 | H117: 270 | I117: =Table1[[#This Row],[Count]]*Table1[[#This Row],[Price]] -> 540
A118: 2012-01-30 | B118: 2012 | C118: 1 | D118: Spain | E118: Laptops | F118: Y10D 10 INCH VIA 8880 | G118: 5 | H118: 246 | I118: =Table1[[#This Row],[Count]]*Table1[[#This Row],[Price]] -> 1230
A119: 2012-01-30 | B119: 2012 | C119: 1 | D119: USA | E119: Tablet PCs | F119: TABLET 10-INCH QUAD-CORE A9 | G119: 2 | H119: 162 | I119: =Table1[[#This Row],[Count]]*Table1[[#This Row],[Price]] -> 324
A120: 2012-01-30 | B120: 2012 | C120: 1 | D120: Liechtenstein | E120: Laptops | F120: THINKPAD T440S | G120: 1 | H120: 258 | I120: =Table1[[#This Row],[Count]]*Table1[[#This Row],[Price]] -> 258
A121: 2012-01-30 | B121: 2012 | C121: 1 | D121: Moldova | E121: Workstations | F121: SUN BLADE 1500 WORKSTATION BASE SUN B1500 | G121: 4 | H121: 378 | I121: =Table1[[#This Row],[Count]]*Table1[[#This Row],[Price]] -> 1512
A122: 2012-01-31 | B122: 2012 | C122: 1 | D122: Latvia | E122: Workstations | F122: HIGH PERFORMANCE 4U LCD WORKSTATION C | G122: 1 | H122: 366 | I122: =Table1[[#This Row],[Count]]*Table1[[#This Row],[Price]] -> 366
A123: 2012-01-31 | B123: 2012 | C123: 1 | D123: Australia | E123: Laptops | F123: THINKPAD E445 | G123: 2 | H123: 222 | I123: =Table1[[#This Row],[Count]]*Table1[[#This Row],[Price]] -> 444
A124: 2012-01-31 | B124: 2012 | C124: 1 | D124: Poland | E124: Camera & Photo | F124: D3000 DIGITAL SLR | G124: 4 | H124: 294 | I124: =Table1[[#This Row],[Count]]*Table1[[#This Row],[Price]] -> 1176
A125: 2012-01-31 | B125: 2012 | C125: 1 | D125: USA | E125: Camera & Photo | F125: FUJIFILM FINEPIX SL1000 | G125: 4 | H125: 330 | I125: =Table1[[#This Row],[Count]]*Table1[[#This Row],[Price]] -> 1320
A126: 2012-02-01 | B126: 2012 | C126: 2 | D126: Netherlands | E126: Tablet PCs | F126: PIPO M6 PRO 9.7 INCH 3G TABLET PC | G126: 5 | H126: 186 | I126: =Table1[[#This Row],[Count]]*Table1[[#This Row],[Price]] -> 930
A127: 2012-02-01 | B127: 2012 | C127: 2 | D127: USA | E127: Workstations | F127: SUN BLADE 1500 WORKSTATION BASE SUN B1500 | G127: 2 | H127: 378 | I127: =Table1[[#This Row],[Count]]*Table1[[#This Row],[Price]] -> 756
A128: 2012-02-01 | B128: 2012 | C128: 2 | D128: Belgium | E128: Workstations | F128: SUN BLADE 1500 WORKSTATION BASE SUN B1500 | G128: 2 | H128: 378 | I128: =Table1[[#This Row],[Count]]*Table1[[#This Row],[Price]] -> 756
A129: 2012-02-01 | B129: 2012 | C129: 2 | D129: USA | E129: Tablet PCs | F129: 7 INCH DUAL CORE ANDROID TABLET PC Q88 | G129: 5 | H129: 210 | I129: =Table1[[#This Row],[Count]]*Table1[[#This Row],[Price]] -> 1050
A130: 2012-02-02 | B130: 2012 | C130: 2 | D130: USA | E130: Laptops | F130: 14.1" AIR LAPTOP INTEL D2500 | G130: 1 | H130: 270 | I130: =Table1[[#This Row],[Count]]*Table1[[#This Row],[Price]] -> 270
A131: 2012-02-02 | B131: 2012 | C131: 2 | D131: Monaco | E131: Tablet PCs | F131: 7 INCH DUAL CORE ANDROID TABLET PC Q88 | G131: 2 | H131: 210 | I131: =Table1[[#This Row],[Count]]*Table1[[#This Row],[Price]] -> 420
A132: 2012-02-02 | B132: 2012 | C132: 2 | D132: USA | E132: Camera & Photo | F132: FUJIFILM FINEPIX SL1000 | G132: 5 | H132: 330 | I132: =Table1[[#This Row],[Count]]*Table1[[#This Row],[Price]] -> 1650
A133: 2012-02-02 | B133: 2012 | C133: 2 | D133: Belgium | E133: Laptops | F133: VIA 8850 ANDROID 4.0 | G133: 4 | H133: 282 | I133: =Table1[[#This Row],[Count]]*Table1[[#This Row],[Price]] -> 1128
A134: 2012-02-03 | B134: 2012 | C134: 2 | D134: USA | E134: Laptops | F134: THINKPAD E445 | G134: 1 | H134: 222 | I134: =Table1[[#This Row],[Count]]*Table1[[#This Row],[Price]] -> 222
A135: 2012-02-03 | B135: 2012 | C135: 2 | D135: Ukraine | E135: Laptops | F135: 14INCH ULTRABOOK | G135: 2 | H135: 234 | I135: =Table1[[#This Row],[Count]]*Table1[[#This Row],[Price]] -> 468
A136: 2012-02-03 | B136: 2012 | C136: 2 | D136: USA | E136: Workstations | F136: SUN BLADE 1500 WORKSTATION BASE SUN B1500 | G136: 2 | H136: 378 | I136: =Table1[[#This Row],[Count]]*Table1[[#This Row],[Price]] -> 756
A137: 2012-02-03 | B137: 2012 | C137: 2 | D137: USA | E137: Tablet PCs | F137: TABLET 10-INCH QUAD-CORE A9 | G137: 4 | H137: 162 | I137: =Table1[[#This Row],[Count]]*Table1[[#This Row],[Price]] -> 648
A138: 2012-02-04 | B138: 2012 | C138: 2 | D138: USA | E138: Camera & Photo | F138: FUJIFILM FINEPIX SL1000 | G138: 1 | H138: 330 | I138: =Table1[[#This Row],[Count]]*Table1[[#This Row],[Price]] -> 330
A139: 2012-02-04 | B139: 2012 | C139: 2 | D139: USA | E139: Camera & Photo | F139: FUJIFILM FINEPIX SL1000 | G139: 5 | H139: 330 | I139: =Table1[[#This Row],[Count]]*Table1[[#This Row],[Price]] -> 1650
A140: 2012-02-04 | B140: 2012 | C140: 2 | D140: Netherlands | E140: Camera & Photo | F140: SONY CYBERSHOT H200 | G140: 5 | H140: 318 | I140: =Table1[[#This Row],[Count]]*Table1[[#This Row],[Price]] -> 1590
A141: 2012-02-04 | B141: 2012 | C141: 2 | D141: Albania | E141: Tablet PCs | F141: PIPO M6 PRO 9.7 INCH 3G TABLET PC | G141: 3 | H141: 186 | I141: =Table1[[#This Row],[Count]]*Table1[[#This Row],[Price]] -> 558
A142: 2012-02-05 | B142: 2012 | C142: 2 | D142: Latvia | E142: Laptops | F142: THINKPAD T440S | G142: 4 | H142: 258 | I142: =Table1[[#This Row],[Count]]*Table1[[#This Row],[Price]] -> 1032
A143: 2012-02-05 | B143: 2012 | C143: 2 | D143: USA | E143: Camera & Photo | F143: SONY CYBERSHOT H200 | G143: 5 | H143: 318 | I143: =Table1[[#This Row],[Count]]*Table1[[#This Row],[Price]] -> 1590
A144: 2012-02-05 | B144: 2012 | C144: 2 | D144: Serbien und Montenegro | E144: Workstations | F144: CLOUD COMPUTER THIN STATION FL300 | G144: 3 | H144: 390 | I144: =Table1[[#This Row],[Count]]*Table1[[#This Row],[Price]] -> 1170
A145: 2012-02-05 | B145: 2012 | C145: 2 | D145: Moldova | E145: Tablet PCs | F145: 10 INCH TABLET HIGH QUALITY TABLET 1GB | G145: 1 | H145: 174 | I145: =Table1[[#This Row],[Count]]*Table1[[#This Row],[Price]] -> 174
A146: 2012-02-06 | B146: 2012 | C146: 2 | D146: USA | E146: Laptops | F146: THINKPAD T440S | G146: 4 | H146: 258 | I146: =Table1[[#This Row],[Count]]*Table1[[#This Row],[Price]] -> 1032
A147: 2012-02-06 | B147: 2012 | C147: 2 | D147: Ukraine | E147: Workstations | F147: HZONE NCOMPUTING L230 | G147: 5 | H147: 354 | I147: =Table1[[#This Row],[Count]]*Table1[[#This Row],[Price]] -> 1770
A148: 2012-02-06 | B148: 2012 | C148: 2 | D148: Czech Republic | E148: Camera & Photo | F148: D3000 DIGITAL SLR | G148: 2 | H148: 294 | I148: =Table1[[#This Row],[Count]]*Table1[[#This Row],[Price]] -> 588
A149: 2012-02-06 | B149: 2012 | C149: 2 | D149: Luxembourg | E149: Camera & Photo | F149: SONY CYBERSHOT H200 | G149: 5 | H149: 318 | I149: =Table1[[#This Row],[Count]]*Table1[[#This Row],[Price]] -> 1590
A150: 2012-02-07 | B150: 2012 | C150: 2 | D150: USA | E150: Tablet PCs | F150: 7 INCH DUAL CORE ANDROID TABLET PC Q88 | G150: 1 | H150: 210 | I150: =Table1[[#This Row],[Count]]*Table1[[#This Row],[Price]] -> 210
A151: 2012-02-07 | B151: 2012 | C151: 2 | D151: Andorra | E151: Laptops | F151: 14INCH ULTRABOOK | G151: 3 | H151: 234 | I151: =Table1[[#This Row],[Count]]*Table1[[#This Row],[Price]] -> 702
A152: 2012-02-07 | B152: 2012 | C152: 2 | D152: Belgium | E152: Workstations | F152: I7 MINI PC WITH HDMI QOTOM-T620 | G152: 5 | H152: 342 | I152: =Table1[[#This Row],[Count]]*Table1[[#This Row],[Price]] -> 1710
A153: 2012-02-07 | B153: 2012 | C153: 2 | D153: USA | E153: Tablet PCs | F153: TABLET 10-INCH QUAD-CORE A9 | G153: 4 | H153: 162 | I153: =Table1[[#This Row],[Count]]*Table1[[#This Row],[Price]] -> 648
A154: 2012-02-08 | B154: 2012 | C154: 2 | D154: USA | E154: Tablet PCs | F154: ONDA V975M TABLET PC | G154: 5 | H154: 150 | I154: =Table1[[#This Row],[Count]]*Table1[[#This Row],[Price]] -> 750
A155: 2012-02-08 | B155: 2012 | C155: 2 | D155: Romania | E155: Tablet PCs | F155: TABLET 10-INCH QUAD-CORE A9 | G155: 5 | H155: 162 | I155: =Table1[[#This Row],[Count]]*Table1[[#This Row],[Price]] -> 810
A156: 2012-02-08 | B156: 2012 | C156: 2 | D156: USA | E156: Tablet PCs | F156: ONDA V975M TABLET PC | G156: 1 | H156: 150 | I156: =Table1[[#This Row],[Count]]*Table1[[#This Row],[Price]] -> 150
A157: 2012-02-08 | B157: 2012 | C157: 2 | D157: USA | E157: Workstations | F157: HIGH PERFORMANCE 4U LCD WORKSTATION C | G157: 1 | H157: 366 | I157: =Table1[[#This Row],[Count]]*Table1[[#This Row],[Price]] -> 366
A158: 2012-02-09 | B158: 2012 | C158: 2 | D158: Bosnia And Herzegovina | E158: Camera & Photo | F158: SONY CYBERSHOT H200 | G158: 3 | H158: 318 | I158: =Table1[[#This Row],[Count]]*Table1[[#This Row],[Price]] -> 954
A159: 2012-02-09 | B159: 2012 | C159: 2 | D159: Andorra | E159: Workstations | F159: SUN BLADE 1500 WORKSTATION BASE SUN B1500 | G159: 1 | H159: 378 | I159: =Table1[[#This Row],[Count]]*Table1[[#This Row],[Price]] -> 378
A160: 2012-02-09 | B160: 2012 | C160: 2 | D160: USA | E160: Tablet PCs | F160: GOOWEEL Q88 PRO A23 DUAL CORE TABLET PC | G160: 5 | H160: 198 | I160: =Table1[[#This Row],[Count]]*Table1[[#This Row],[Price]] -> 990
A161: 2012-02-09 | B161: 2012 | C161: 2 | D161: Luxembourg | E161: Tablet PCs | F161: 10 INCH TABLET HIGH QUALITY TABLET 1GB | G161: 5 | H161: 174 | I161: =Table1[[#This Row],[Count]]*Table1[[#This Row],[Price]] -> 870
A162: 2012-02-10 | B162: 2012 | C162: 2 | D162: Poland | E162: Tablet PCs | F162: TABLET 10-INCH QUAD-CORE A9 | G162: 4 | H162: 162 | I162: =Table1[[#This Row],[Count]]*Table1[[#This Row],[Price]] -> 648
A163: 2012-02-10 | B163: 2012 | C163: 2 | D163: USA | E163: Workstations | F163: I7 MINI PC WITH HDMI QOTOM-T620 | G163: 4 | H163: 342 | I163: =Table1[[#This Row],[Count]]*Table1[[#This Row],[Price]] -> 1368
A164: 2012-02-10 | B164: 2012 | C164: 2 | D164: Macedonia | E164: Workstations | F164: CLOUD COMPUTER THIN STATION FL300 | G164: 5 | H164: 390 | I164: =Table1[[#This Row],[Count]]*Table1[[#This Row],[Price]] -> 1950
A165: 2012-02-10 | B165: 2012 | C165: 2 | D165: Croatia | E165: Workstations | F165: HZONE NCOMPUTING L230 | G165: 3 | H165: 354 | I165: =Table1[[#This Row],[Count]]*Table1[[#This Row],[Price]] -> 1062
A166: 2012-02-11 | B166: 2012 | C166: 2 | D166: Albania | E166: Laptops | F166: 14INCH ULTRABOOK | G166: 5 | H166: 234 | I166: =Table1[[#This Row],[Count]]*Table1[[#This Row],[Price]] -> 1170
A167: 2012-02-11 | B167: 2012 | C167: 2 | D167: Australia | E167: Laptops | F167: 14.1" AIR LAPTOP INTEL D2500 | G167: 3 | H167: 270 | I167: =Table1[[#This Row],[Count]]*Table1[[#This Row],[Price]] -> 810
A168: 2012-02-11 | B168: 2012 | C168: 2 | D168: Andorra | E168: Camera & Photo | F168: D3200 DIGITAL SLR | G168: 4 | H168: 306 | I168: =Table1[[#This Row],[Count]]*Table1[[#This Row],[Price]] -> 1224
A169: 2012-02-11 | B169: 2012 | C169: 2 | D169: Monaco | E169: Tablet PCs | F169: 7 INCH DUAL CORE ANDROID TABLET PC Q88 | G169: 1 | H169: 210 | I169: =Table1[[#This Row],[Count]]*Table1[[#This Row],[Price]] -> 210
A170: 2012-02-12 | B170: 2012 | C170: 2 | D170: Portugal | E170: Camera & Photo | F170: SONY CYBERSHOT H200 | G170: 3 | H170: 318 | I170: =Table1[[#This Row],[Count]]*Table1[[#This Row],[Price]] -> 954
A171: 2012-02-12 | B171: 2012 | C171: 2 | D171: Moldova | E171: Tablet PCs | F171: ONDA V975M TABLET PC | G171: 3 | H171: 150 | I171: =Table1[[#This Row],[Count]]*Table1[[#This Row],[Price]] -> 450
A172: 2012-02-12 | B172: 2012 | C172: 2 | D172: Australia | E172: Tablet PCs | F172: PIPO M6 PRO 9.7 INCH 3G TABLET PC | G172: 2 | H172: 186 | I172: =Table1[[#This Row],[Count]]*Table1[[#This Row],[Price]] -> 372
A173: 2012-02-12 | B173: 2012 | C173: 2 | D173: Montenegro | E173: Tablet PCs | F173: 7 INCH DUAL CORE ANDROID TABLET PC Q88 | G173: 2 | H173: 210 | I173: =Table1[[#This Row],[Count]]*Table1[[#This Row],[Price]] -> 420
A174: 2012-02-13 | B174: 2012 | C174: 2 | D174: USA | E174: Workstations | F174: HIGH PERFORMANCE 4U LCD WORKSTATION C | G174: 2 | H174: 366 | I174: =Table1[[#This Row],[Count]]*Table1[[#This Row],[Price]] -> 732
A175: 2012-02-13 | B175: 2012 | C175: 2 | D175: USA | E175: Workstations | F175: I7 MINI PC WITH HDMI QOTOM-T620 | G175: 1 | H175: 342 | I175: =Table1[[#This Row],[Count]]*Table1[[#This Row],[Price]] -> 342
A176: 2012-02-13 | B176: 2012 | C176: 2 | D176: USA | E176: Tablet PCs | F176: 10 INCH TABLET HIGH QUALITY TABLET 1GB | G176: 4 | H176: 174 | I176: =Table1[[#This Row],[Count]]*Table1[[#This Row],[Price]] -> 696
A177: 2012-02-13 | B177: 2012 | C177: 2 | D177: Bulgaria | E177: Camera & Photo | F177: D3000 DIGITAL SLR | G177: 3 | H177: 294 | I177: =Table1[[#This Row],[Count]]*Table1[[#This Row],[Price]] -> 882
A178: 2012-02-14 | B178: 2012 | C178: 2 | D178: Australia | E178: Laptops | F178: THINKPAD T440S | G178: 2 | H178: 258 | I178: =Table1[[#This Row],[Count]]*Table1[[#This Row],[Price]] -> 516
A179: 2012-02-14 | B179: 2012 | C179: 2 | D179: USA | E179: Tablet PCs | F179: 10 INCH TABLET HIGH QUALITY TABLET 1GB | G179: 3 | H179: 174 | I179: =Table1[[#This Row],[Count]]*Table1[[#This Row],[Price]] -> 522
A180: 2012-02-14 | B180: 2012 | C180: 2 | D180: Malta | E180: Workstations | F180: HZONE NCOMPUTING L230 | G180: 1 | H180: 354 | I180: =Table1[[#This Row],[Count]]*Table1[[#This Row],[Price]] -> 354
A181: 2012-02-14 | B181: 2012 | C181: 2 | D181: Australia | E181: Workstations | F181: I7 MINI PC WITH HDMI QOTOM-T620 | G181: 3 | H181: 342 | I181: =Table1[[#This Row],[Count]]*Table1[[#This Row],[Price]] -> 1026
A182: 2012-02-15 | B182: 2012 | C182: 2 | D182: USA | E182: Tablet PCs | F182: PIPO M6 PRO 9.7 INCH 3G TABLET PC | G182: 2 | H182: 186 | I182: =Table1[[#This Row],[Count]]*Table1[[#This Row],[Price]] -> 372
A183: 2012-02-15 | B183: 2012 | C183: 2 | D183: Germany | E183: Laptops | F183: 14.1" AIR LAPTOP INTEL D2500 | G183: 1 | H183: 270 | I183: =Table1[[#This Row],[Count]]*Table1[[#This Row],[Price]] -> 270
A184: 2012-02-15 | B184: 2012 | C184: 2 | D184: USA | E184: Laptops | F184: THINKPAD T440S | G184: 5 | H184: 258 | I184: =Table1[[#This Row],[Count]]*Table1[[#This Row],[Price]] -> 1290
A185: 2012-02-15 | B185: 2012 | C185: 2 | D185: Denmark | E185: Laptops | F185: Y10D 10 INCH VIA 8880 | G185: 2 | H185: 246 | I185: =Table1[[#This Row],[Count]]*Table1[[#This Row],[Price]] -> 492
A186: 2012-02-16 | B186: 2012 | C186: 2 | D186: Bosnia And Herzegovina | E186: Camera & Photo | F186: FUJIFILM FINEPIX SL1000 | G186: 5 | H186: 330 | I186: =Table1[[#This Row],[Count]]*Table1[[#This Row],[Price]] -> 1650
A187: 2012-02-16 | B187: 2012 | C187: 2 | D187: Hungary | E187: Workstations | F187: HIGH PERFORMANCE 4U LCD WORKSTATION C | G187: 3 | H187: 366 | I187: =Table1[[#This Row],[Count]]*Table1[[#This Row],[Price]] -> 1098
A188: 2012-02-16 | B188: 2012 | C188: 2 | D188: USA | E188: Workstations | F188: I7 MINI PC WITH HDMI QOTOM-T620 | G188: 5 | H188: 342 | I188: =Table1[[#This Row],[Count]]*Table1[[#This Row],[Price]] -> 1710
A189: 2012-02-16 | B189: 2012 | C189: 2 | D189: USA | E189: Workstations | F189: SUN BLADE 1500 WORKSTATION BASE SUN B1500 | G189: 2 | H189: 378 | I189: =Table1[[#This Row],[Count]]*Table1[[#This Row],[Price]] -> 756
A190: 2012-02-17 | B190: 2012 | C190: 2 | D190: USA | E190: Tablet PCs | F190: GOOWEEL Q88 PRO A23 DUAL CORE TABLET PC | G190: 5 | H190: 198 | I190: =Table1[[#This Row],[Count]]*Table1[[#This Row],[Price]] -> 990
A191: 2012-02-17 | B191: 2012 | C191: 2 | D191: USA | E191: Tablet PCs | F191: 10 INCH TABLET HIGH QUALITY TABLET 1GB | G191: 1 | H191: 174 | I191: =Table1[[#This Row],[Count]]*Table1[[#This Row],[Price]] -> 174
A192: 2012-02-17 | B192: 2012 | C192: 2 | D192: Malta | E192: Camera & Photo | F192: D3200 DIGITAL SLR | G192: 5 | H192: 306 | I192: =Table1[[#This Row],[Count]]*Table1[[#This Row],[Price]] -> 1530
A193: 2012-02-17 | B193: 2012 | C193: 2 | D193: Germany | E193: Camera & Photo | F193: FUJIFILM FINEPIX SL1000 | G193: 1 | H193: 330 | I193: =Table1[[#This Row],[Count]]*Table1[[#This Row],[Price]] -> 330
A194: 2012-02-18 | B194: 2012 | C194: 2 | D194: Estonia | E194: Camera & Photo | F194: D3200 DIGITAL SLR | G194: 5 | H194: 306 | I194: =Table1[[#This Row],[Count]]*Table1[[#This Row],[Price]] -> 1530
A195: 2012-02-18 | B195: 2012 | C195: 2 | D195: USA | E195: Tablet PCs | F195: PIPO M6 PRO 9.7 INCH 3G TABLET PC | G195: 1 | H195: 186 | I195: =Table1[[#This Row],[Count]]*Table1[[#This Row],[Price]] -> 186
A196: 2012-02-18 | B196: 2012 | C196: 2 | D196: Ireland | E196: Workstations | F196: SUN BLADE 1500 WORKSTATION BASE SUN B1500 | G196: 5 | H196: 378 | I196: =Table1[[#This Row],[Count]]*Table1[[#This Row],[Price]] -> 1890
A197: 2012-02-18 | B197: 2012 | C197: 2 | D197: Australia | E197: Workstations | F197: CLOUD COMPUTER THIN STATION FL300 | G197: 5 | H197: 390 | I197: =Table1[[#This Row],[Count]]*Table1[[#This Row],[Price]] -> 1950
A198: 2012-02-19 | B198: 2012 | C198: 2 | D198: Ukraine | E198: Tablet PCs | F198: 7 INCH DUAL CORE ANDROID TABLET PC Q88 | G198: 5 | H198: 210 | I198: =Table1[[#This Row],[Count]]*Table1[[#This Row],[Price]] -> 1050
A199: 2012-02-19 | B199: 2012 | C199: 2 | D199: Ireland | E199: Camera & Photo | F199: D3200 DIGITAL SLR | G199: 3 | H199: 306 | I199: =Table1[[#This Row],[Count]]*Table1[[#This Row],[Price]] -> 918
A200: 2012-02-19 | B200: 2012 | C200: 2 | D200: Norway | E200: Tablet PCs | F200: GOOWEEL Q88 PRO A23 DUAL CORE TABLET PC | G200: 1 | H200: 198 | I200: =Table1[[#This Row],[Count]]*Table1[[#This Row],[Price]] -> 198
... 3081 more rows

Sheet Filter
A1: Advanced Filter
C3: Year | D3: 2014
C4: Month | G4: www.excely.com
C5: Country | D5: USA | G5: More Excel Templates, Arcticles about Excel and VBA development
C6: Category
C7: Product | D7: VIA
A9: Date | B9: Year | C9: Month | D9: Country | E9: Category | F9: Product | G9: Count | H9: Price | I9: Total
A10: 2014-01-11 | B10: 2014 | C10: 1 | D10: USA | E10: Laptops | F10: Y10D 10 INCH VIA 8880 | G10: 1 | H10: 246 | I10: 246
A11: 2014-01-26 | B11: 2014 | C11: 1 | D11: USA | E11: Laptops | F11: Y10D 10 INCH VIA 8880 | G11: 4 | H11: 246 | I11: 984
A12: 2014-01-26 | B12: 2014 | C12: 1 | D12: USA | E12: Laptops | F12: VIA 8850 ANDROID 4.0 | G12: 1 | H12: 282 | I12: 282
A13: 2014-01-28 | B13: 2014 | C13: 1 | D13: USA | E13: Laptops | F13: Y10D 10 INCH VIA 8880 | G13: 1 | H13: 246 | I13: 246
A14: 2014-01-28 | B14: 2014 | C14: 1 | D14: USA | E14: Laptops | F14: Y10D 10 INCH VIA 8880 | G14: 2 | H14: 246 | I14: 492
A15: 2014-02-10 | B15: 2014 | C15: 2 | D15: USA | E15: Laptops | F15: VIA 8850 ANDROID 4.0 | G15: 5 | H15: 282 | I15: 1410
A16: 2014-02-16 | B16: 2014 | C16: 2 | D16: USA | E16: Laptops | F16: Y10D 10 INCH VIA 8880 | G16: 1 | H16: 246 | I16: 246
A17: 2014-02-18 | B17: 2014 | C17: 2 | D17: USA | E17: Laptops | F17: Y10D 10 INCH VIA 8880 | G17: 3 | H17: 246 | I17: 738
A18: 2014-03-02 | B18: 2014 | C18: 3 | D18: USA | E18: Laptops | F18: VIA 8850 ANDROID 4.0 | G18: 2 | H18: 282 | I18: 564
A19: 2014-03-03 | B19: 2014 | C19: 3 | D19: USA | E19: Laptops | F19: VIA 8850 ANDROID 4.0 | G19: 4 | H19: 282 | I19: 1128
A20: 2014-03-03 | B20: 2014 | C20: 3 | D20: USA | E20: Laptops | F20: Y10D 10 INCH VIA 8880 | G20: 2 | H20: 246 | I20: 492
A21: 2014-03-13 | B21: 2014 | C21: 3 | D21: USA | E21: Laptops | F21: VIA 8850 ANDROID 4.0 | G21: 4 | H21: 282 | I21: 1128
A22: 2014-03-24 | B22: 2014 | C22: 3 | D22: USA | E22: Laptops | F22: VIA 8850 ANDROID 4.0 | G22: 1 | H22: 282 | I22: 282
